fUST/lending_fUST_20241002
["ID","MTS","AMOUNT","RATE_DAILY","PERIOD"]
[339678750,1727853037762,-157.657672,0.00015002,2]
[339678752,1727853037772,-500.0,0.00015058,2]
[339678754,1727853037782,-157.657672,0.00015067,2]
[339678756,1727853037792,-157.657672,0.00015132,2]
[339678758,1727853037801,-157.657672,0.00015197,2]
[339678761,1727853037813,-157.657672,0.00015263,2]
[339678763,1727853037822,-157.657672,0.00015328,2]
[339678765,1727853037832,-157.657672,0.00015393,2]
[339678767,1727853037841,-157.657672,0.00015458,2]
[339678769,1727853037851,-157.657672,0.00015523,2]
[339678772,1727853037867,-157.657672,0.00015588,2]
[339678774,1727853037880,-157.657672,0.00015653,2]
[339678776,1727853037891,-465.00714172,0.00015676,2]
[339678778,1727853037901,-157.657672,0.00015719,2]
[339678780,1727853037911,-153.0,0.00015752,2]
[339678782,1727853037920,-157.657672,0.00015784,2]
[339678784,1727853037930,-467.909144,0.0001589,2]
[339678786,1727853037940,-153.3716786,0.00015903,2]
[339678789,1727853037952,-1000.0,0.00016,10]
[339678791,1727853037962,-300.0,0.0001604,2]
[339678793,1727853037972,-300.0,0.0001604,2]
[339678795,1727853037981,-1476.49236128,0.00016041,2]
[339678811,1727853039816,-4351.22158486,0.00015897,2]
[339678812,1727853039826,-150.0,0.00015912,2]
[339678813,1727853039836,-433.49813364,0.00016132,2]
[339678814,1727853039846,-1000.0,0.00016142,2]
[339678815,1727853039856,-1462.4546832,0.00016144,2]
[339678816,1727853039865,-1000.0,0.00016167,2]
[339678817,1727853039874,-1000.0,0.00016183,2]
[339678818,1727853039884,-153.0,0.00016192,2]
[339678819,1727853039895,-1213.83594422,0.00016198,10]
[339678820,1727853039904,-655.92254183,0.00016216,2]
[339678821,1727853039914,-500.0,0.00016216,2]
[339678822,1727853039925,-500.0,0.00016216,2]
[339678823,1727853039935,-500.0,0.00016216,2]
[339678824,1727853039946,-500.0,0.00016216,2]
[339678825,1727853039957,-500.0,0.00016216,2]
[339678826,1727853039967,-500.0,0.00016216,2]
[339678827,1727853039977,-500.0,0.00016216,2]
[339678828,1727853039988,-500.0,0.00016216,2]
[339678829,1727853039999,-500.0,0.00016216,2]
[339678830,1727853040010,-161.23746431,0.00016216,2]
[339678831,1727853040019,-500.0,0.00016216,2]
[339678832,1727853040030,-500.0,0.00016216,2]
[339678833,1727853040041,-500.0,0.00016216,2]
[339678834,1727853040051,-500.0,0.00016216,2]
[339678835,1727853040063,-500.0,0.00016216,2]
[339678836,1727853040073,-500.0,0.00016216,2]
[339678837,1727853040082,-500.0,0.00016216,2]
[339678838,1727853040091,-500.0,0.00016216,2]
[339678839,1727853040101,-500.0,0.00016216,2]
[339678840,1727853040110,-500.0,0.00016216,2]
[339678841,1727853040120,-500.0,0.00016216,2]
[339678842,1727853040130,-500.0,0.00016216,2]
[339678843,1727853040141,-500.0,0.00016216,2]
[339678844,1727853040152,-500.0,0.00016216,2]
[339678845,1727853040163,-500.0,0.00016216,2]
[339678846,1727853040174,-500.0,0.00016216,2]
[339678847,1727853040184,-472.4597232,0.00016216,2]
[339678848,1727853040194,-500.0,0.00016216,2]
[339678849,1727853040204,-500.0,0.00016216,2]
[339678850,1727853040213,-500.0,0.00016216,2]
[339678851,1727853040223,-500.0,0.00016216,2]
[339678852,1727853040232,-500.0,0.00016216,2]
[339678853,1727853040242,-500.0,0.00016216,2]
[339678854,1727853040251,-500.0,0.00016216,2]
[339678855,1727853040260,-500.0,0.00016216,2]
[339678856,1727853040269,-500.0,0.00016216,2]
[339678857,1727853040279,-500.0,0.00016216,2]
[339678858,1727853040288,-500.0,0.00016216,2]
[339678859,1727853040297,-500.0,0.00016216,2]
[339678860,1727853040307,-500.0,0.00016216,2]
[339678861,1727853040317,-500.0,0.00016216,2]
[339678862,1727853040328,-500.0,0.00016216,2]
[339678863,1727853040337,-400.0,0.00016216,2]
[339678864,1727853040347,-500.0,0.00016216,2]
[339678865,1727853040356,-500.0,0.00016216,2]
[339678866,1727853040366,-500.0,0.00016216,2]
[339678867,1727853040375,-500.0,0.00016216,2]
[339678868,1727853040385,-500.0,0.00016216,2]
[339678869,1727853040396,-160.0,0.00016216,2]
[339678870,1727853040408,-94012.0333804,0.00016217,2]
[339678871,1727853040419,-69505.0987515,0.00016217,2]
[339678872,1727853040429,-440.64136517,0.00016231,2]
[339678873,1727853040439,-500.0,0.00016231,2]
[339678874,1727853040448,-500.0,0.00016231,2]
[339678875,1727853040457,-500.0,0.00016231,2]
[339678876,1727853040467,-500.0,0.00016231,2]
[339678877,1727853040479,-500.0,0.00016231,2]
[339678878,1727853040489,-166.09257398,0.00016231,2]
[339678879,1727853040499,-151.0,0.00016232,2]
[339678880,1727853040509,-151.0,0.00016232,2]
[339678881,1727853040519,-526.87179,0.00016232,2]
[339678882,1727853040528,-526.87179,0.00016232,2]
[339678883,1727853040538,-227.858584,0.00016232,2]
[339678884,1727853040548,-94012.0333804,0.00016232,2]
[339678885,1727853040558,-69505.0987515,0.00016232,2]
[339678886,1727853040568,-151.0,0.00016233,2]
[339678887,1727853040578,-151.0,0.00016233,2]
[339678888,1727853040758,-285.813002,0.00016233,2]
[339678889,1727853040768,-526.87179,0.00016233,2]
[339678890,1727853040778,-526.87179,0.00016233,2]
[339678891,1727853040787,-526.87179,0.00016233,2]
[339678892,1727853040796,-526.87179,0.00016233,2]
[339678893,1727853040805,-3389.06985857,0.00016233,2]
[339678894,1727853040814,-7468.25281188,0.00016233,2]
[339678895,1727853040824,-188024.066761,0.00016234,2]
[339678896,1727853040833,-139010.197503,0.00016234,2]
[339678897,1727853040842,-69505.0987515,0.00016244,2]
[339678898,1727853040852,-153.518381,0.00016244,2]
[339678899,1727853040861,-151.0,0.00016244,2]
[339678900,1727853040871,-151.0,0.00016244,2]
[339678901,1727853040880,-151.0,0.00016244,2]
[339678902,1727853040889,-151.0,0.00016244,2]
[339678903,1727853040899,-151.0,0.00016244,2]
[339678904,1727853040908,-151.0,0.00016244,2]
[339678905,1727853040917,-235.647183,0.00016244,2]
[339678906,1727853040927,-235.647183,0.00016244,2]
[339678907,1727853040936,-235.647183,0.00016244,2]
[339678908,1727853040945,-235.647183,0.00016244,2]
[339678909,1727853040955,-155.843532,0.00016244,2]
[339678910,1727853040964,-151.0,0.00016244,2]
[339678911,1727853040973,-151.0,0.00016244,2]
[339678912,1727853040983,-151.0,0.00016244,2]
[339678913,1727853040993,-151.0,0.00016244,2]
[339678914,1727853041003,-164.62718,0.00016244,2]
[339678915,1727853041012,-164.62718,0.00016244,2]
[339678916,1727853041022,-151.0,0.00016244,2]
[339678917,1727853041032,-151.0,0.00016244,2]
[339678918,1727853041041,-151.0,0.00016244,2]
[339678919,1727853041051,-151.0,0.00016244,2]
[339678920,1727853041061,-164.62718,0.00016244,2]
[339678921,1727853041071,-164.62718,0.00016244,2]
[339678922,1727853041081,-151.0,0.00016244,2]
[339678923,1727853041091,-151.0,0.00016244,2]
[339678924,1727853041099,-276.593504,0.00016244,2]
[339678925,1727853041109,-276.593504,0.00016244,2]
[339678926,1727853041119,-276.593504,0.00016244,2]
[339678927,1727853041129,-276.593504,0.00016244,2]
[339678928,1727853041138,-299.671133,0.00016244,2]
[339678929,1727853041147,-299.671133,0.00016244,2]
[339678930,1727853041157,-299.671133,0.00016244,2]
[339678931,1727853041168,-299.671133,0.00016244,2]
[339678932,1727853041179,-333.795487,0.00016244,2]
[339678933,1727853041190,-333.795487,0.00016244,2]
[339678934,1727853041201,-333.795487,0.00016244,2]
[339678935,1727853041211,-333.795487,0.00016244,2]
[339678936,1727853041221,-151.0,0.00016244,2]
[339678937,1727853041231,-151.0,0.00016244,2]
[339678938,1727853041241,-151.0,0.00016244,2]
[339678939,1727853041251,-151.0,0.00016244,2]
[339678940,1727853041262,-151.0,0.00016244,2]
[339678941,1727853041271,-151.0,0.00016244,2]
[339678942,1727853041281,-151.0,0.00016244,2]
[339678943,1727853041291,-151.0,0.00016244,2]
[339678944,1727853041302,-151.0,0.00016244,2]
[339678945,1727853041315,-526.87179,0.00016244,2]
[339678946,1727853041326,-526.87179,0.00016244,2]
[339678947,1727853041337,-1000.0,0.00016252,2]
[339678948,1727853041347,-151.0,0.00016254,2]
[339678949,1727853041356,-284.674728,0.00016254,2]
[339678950,1727853041365,-151.0,0.00016254,2]
[339678951,1727853041374,-151.0,0.00016254,2]
[339678952,1727853041384,-151.0,0.00016254,2]
[339678953,1727853041396,-167.633619,0.00016254,2]
[339678954,1727853041409,-151.0,0.00016254,2]
[339678955,1727853041421,-235.647183,0.00016254,2]
[339678956,1727853041432,-235.647183,0.00016254,2]
[339678957,1727853041441,-235.647183,0.00016254,2]
[339678958,1727853041450,-235.647183,0.00016254,2]
[339678959,1727853041463,-178.139726,0.00016254,2]
[339678960,1727853041475,-151.0,0.00016254,2]
[339678961,1727853041485,-164.62718,0.00016254,2]
[339678962,1727853041494,-164.62718,0.00016254,2]
[339678963,1727853041504,-281.325158,0.00016254,2]
[339678964,1727853041513,-151.0,0.00016254,2]
[339678965,1727853041523,-151.0,0.00016254,2]
[339678966,1727853041532,-164.62718,0.00016254,2]
[339678967,1727853041541,-164.62718,0.00016254,2]
[339678968,1727853041550,-246.199454,0.00016254,2]
[339678969,1727853041561,-276.593504,0.00016254,2]
[339678970,1727853041570,-276.593504,0.00016254,2]
[339678971,1727853041580,-276.593504,0.00016254,2]
[339678972,1727853041589,-276.593504,0.00016254,2]
[339678973,1727853041599,-299.671133,0.00016254,2]
[339678974,1727853041610,-299.671133,0.00016254,2]
[339678975,1727853041620,-299.671133,0.00016254,2]
[339678976,1727853041631,-299.671133,0.00016254,2]
[339678977,1727853041640,-333.795487,0.00016254,2]
[339678978,1727853041649,-333.795487,0.00016254,2]
[339678979,1727853041659,-333.795487,0.00016254,2]
[339678980,1727853041668,-333.795487,0.00016254,2]
[339678981,1727853041678,-151.0,0.00016254,2]
[339678982,1727853041688,-151.0,0.00016254,2]
[339678983,1727853041698,-151.0,0.00016254,2]
[339678984,1727853041707,-151.0,0.00016254,2]
[339678985,1727853041718,-151.0,0.00016254,2]
[339678986,1727853041728,-296.266707,0.00016254,2]
[339678987,1727853041738,-151.0,0.00016254,2]
[339678988,1727853041748,-151.0,0.00016254,2]
[339678989,1727853041758,-69505.0987515,0.00016264,2]
[339678990,1727853041767,-151.0,0.00016264,2]
[339678991,1727853041777,-153.001824,0.00016264,2]
[339678992,1727853041786,-151.0,0.00016264,2]
[339678993,1727853041798,-151.0,0.00016264,2]
[339678994,1727853041811,-152.052665,0.00016264,2]
[339678995,1727853041822,-364.309809,0.00016264,2]
[339678996,1727853041831,-364.309809,0.00016264,2]
[339678997,1727853041841,-151.0,0.00016264,2]
[339678998,1727853041850,-151.0,0.00016264,2]
[339678999,1727853041859,-151.0,0.00016264,2]
[339679000,1727853041869,-526.87179,0.00016264,2]
[339679001,1727853041879,-526.87179,0.00016264,2]
[339679002,1727853041889,-1000.0,0.00016266,2]
[339679003,1727853041899,-502.0085074,0.00016273,2]
[339679004,1727853041909,-502.16993249,0.00016273,2]
[339679005,1727853041919,-500.0,0.00016273,2]
[339679006,1727853041928,-306.12287919,0.00016273,2]
[339679007,1727853041938,-617.51607558,0.00016273,2]
[339679008,1727853041947,-631.5859694,0.00016273,2]
[339679009,1727853041956,-500.0,0.00016273,2]
[339679010,1727853041966,-10256.92249634,0.00016274,2]
[339679011,1727853041976,-13439.53782856,0.00016274,2]
[339679012,1727853041986,-1000.0,0.00016279,2]
[339679013,1727853041997,-69505.0987515,0.00016297,2]
[339679014,1727853042007,-1000.0,0.00016298,2]
[339679015,1727853042016,-151.0,0.00016298,2]
[339679016,1727853042026,-526.87179,0.00016298,2]
[339679017,1727853042036,-526.87179,0.00016298,2]
[339679018,1727853042046,-150.112233,0.000163,2]
[339679019,1727853042056,-151.0,0.00016307,2]
[339679020,1727853042067,-151.0,0.00016307,2]
[339679021,1727853042076,-151.0,0.00016307,2]
[339679022,1727853042085,-174.395152,0.00016307,2]
[339679023,1727853042095,-235.647183,0.00016307,2]
[339679024,1727853042105,-235.647183,0.00016307,2]
[339679025,1727853042114,-235.647183,0.00016307,2]
[339679026,1727853042123,-235.647183,0.00016307,2]
[339679027,1727853042133,-164.62718,0.00016307,2]
[339679028,1727853042142,-164.62718,0.00016307,2]
[339679029,1727853042151,-151.0,0.00016307,2]
[339679030,1727853042162,-151.0,0.00016307,2]
[339679031,1727853042171,-164.62718,0.00016307,2]
[339679032,1727853042181,-164.62718,0.00016307,2]
[339679033,1727853042192,-276.593504,0.00016307,2]
[339679034,1727853042203,-276.593504,0.00016307,2]
[339679035,1727853042213,-276.593504,0.00016307,2]
[339679036,1727853042223,-276.593504,0.00016307,2]
[339679037,1727853042232,-299.671133,0.00016307,2]
[339679038,1727853042242,-299.671133,0.00016307,2]
[339679039,1727853042251,-299.671133,0.00016307,2]
[339679040,1727853042261,-299.671133,0.00016307,2]
[339679041,1727853042271,-333.795487,0.00016307,2]
[339679042,1727853042281,-333.795487,0.00016307,2]
[339679043,1727853042291,-333.795487,0.00016307,2]
[339679044,1727853042300,-333.795487,0.00016307,2]
[339679045,1727853042312,-186.091645,0.00016307,2]
[339679046,1727853042322,-151.0,0.00016307,2]
[339679047,1727853042331,-151.0,0.00016307,2]
[339679048,1727853042341,-151.0,0.00016307,2]
[339679049,1727853042351,-276.764392,0.00016307,2]
[339679050,1727853042361,-151.0,0.00016318,2]
[339679051,1727853042371,-151.0,0.00016318,2]
[339679052,1727853042381,-151.0,0.00016318,2]
[339679055,1727853042392,-151.0,0.00016318,2]
[339679056,1727853042401,-151.0,0.00016318,2]
[339679057,1727853042414,-151.0,0.00016318,2]
[339679058,1727853042424,-364.309809,0.00016318,2]
[339679060,1727853042434,-364.309809,0.00016318,2]
[339679062,1727853042444,-364.309809,0.00016318,2]
[339679064,1727853042454,-364.309809,0.00016318,2]
[339679066,1727853042465,-151.0,0.00016318,2]
[339679068,1727853042474,-151.0,0.00016318,2]
[339679070,1727853042485,-152.648707,0.00016318,2]
[339679071,1727853042495,-151.0,0.00016338,2]
[339679074,1727853042505,-235.647183,0.00016338,2]
[339679076,1727853042515,-235.647183,0.00016338,2]
[339679078,1727853042525,-164.62718,0.00016338,2]
[339679080,1727853042535,-151.0,0.00016338,2]
[339679082,1727853042545,-164.62718,0.00016338,2]
[339679085,1727853042554,-276.593504,0.00016338,2]
[339679087,1727853042567,-276.593504,0.00016338,2]
[339679089,1727853042577,-299.671133,0.00016338,2]
[339679090,1727853042589,-299.671133,0.00016338,2]
[339679091,1727853042599,-333.795487,0.00016338,2]
[339679092,1727853042609,-333.795487,0.00016338,2]
[339679093,1727853042619,-151.0,0.00016338,2]
[339679094,1727853042629,-151.0,0.00016338,2]
[339679095,1727853042638,-526.87179,0.00016338,2]
[339679096,1727853042649,-526.87179,0.00016338,2]
[339679097,1727853042658,-29046.93725557,0.00016338,2]
[339679098,1727853042668,-3000.0,0.00016338,2]
[339679099,1727853042679,-696.79443635,0.00016384,2]
[339679100,1727853042688,-543.33417285,0.00016389,2]
[339679101,1727853042698,-151.0,0.0001639,2]
[339679102,1727853042708,-151.0,0.0001639,2]
[339679103,1727853042718,-235.647183,0.0001639,2]
[339679104,1727853042728,-235.647183,0.0001639,2]
[339679105,1727853042738,-164.62718,0.0001639,2]
[339679106,1727853042747,-151.0,0.0001639,2]
[339679107,1727853042757,-164.62718,0.0001639,2]
[339679108,1727853042766,-276.593504,0.0001639,2]
[339679109,1727853042776,-276.593504,0.0001639,2]
[339679110,1727853042786,-299.671133,0.0001639,2]
[339679111,1727853042796,-299.671133,0.0001639,2]
[339679112,1727853042806,-333.795487,0.0001639,2]
[339679113,1727853042817,-333.795487,0.0001639,2]
[339679114,1727853042827,-151.0,0.0001639,2]
[339679115,1727853042836,-387.58158654,0.00016399,2]
[339679116,1727853042847,-25596.85988475,0.000164,2]
[339679165,1727854234497,-234.698203,0.00015035,2]
[339679166,1727854234505,-54.56227953,0.00015058,2]
[339679171,1727854237927,-445.43772047,0.00015058,2]
[339679172,1727854237938,-340.505527,0.00015082,2]
[339679173,1727854237948,-250.000009,0.00015198,2]
[339679174,1727854237958,-340.505527,0.00015767,2]
[339679175,1727854237968,-444.513686,0.0001589,2]
[339679176,1727854237978,-1000.0,0.00016,9]
[339679177,1727854237987,-366.72614129,0.00016032,2]
[339679178,1727854237997,-300.0,0.00016131,2]
[339679179,1727854238006,-300.0,0.00016131,2]
[339679180,1727854238015,-437.28169456,0.00016132,2]
[339679181,1727854238025,-500.0,0.00016132,2]
[339679182,1727854238035,-500.0,0.00016132,2]
[339679183,1727854238045,-4295.85,0.00016132,2]
[339679184,1727854238054,-500.0,0.00016132,2]
[339679185,1727854238063,-500.0,0.00016132,2]
[339679186,1727854238077,-919.93,0.00016132,2]
[339679187,1727854238089,-500.0,0.00016132,2]
[339679188,1727854238100,-500.0,0.00016132,2]
[339679189,1727854238110,-500.0,0.00016132,2]
[339679190,1727854238123,-500.0,0.00016132,2]
[339679192,1727854238133,-500.0,0.00016132,2]
[339679193,1727854238144,-500.0,0.00016132,2]
[339679194,1727854238156,-2148.39,0.00016132,2]
[339679195,1727854238165,-500.0,0.00016132,2]
[339679196,1727854238177,-551.26235009,0.00016132,2]
[339679197,1727854238190,-578.45,0.00016132,2]
[339679198,1727854238199,-500.0,0.00016132,2]
[339679199,1727854238209,-952.3,0.00016132,2]
[339679200,1727854238219,-279.55252505,0.00016132,2]
[339679201,1727854238234,-710.63747495,0.00016132,2]
[339679202,1727854238244,-967.63,0.00016132,2]
[339679203,1727854238253,-503.77311145,0.00016132,2]
[339679204,1727854238265,-500.0,0.00016132,2]
[339679205,1727854238276,-500.0,0.00016132,2]
[339679206,1727854238286,-500.53026266,0.00016132,2]
[339679207,1727854238295,-500.0,0.00016132,2]
[339679208,1727854238305,-500.0,0.00016132,2]
[339679209,1727854238315,-963.51,0.00016132,2]
[339679210,1727854238330,-500.0,0.00016132,2]
[339679211,1727854238340,-936.39,0.00016132,2]
[339679212,1727854238350,-500.0,0.00016132,2]
[339679213,1727854238359,-500.0,0.00016132,2]
[339679214,1727854238369,-500.0,0.00016132,2]
[339679215,1727854238379,-392.89855519,0.00016132,2]
[339679216,1727854238390,-500.0,0.00016132,2]
[339679217,1727854238400,-500.0,0.00016132,2]
[339679218,1727854238409,-500.0,0.00016132,2]
[339679219,1727854238419,-266.15680228,0.00016132,2]
[339679220,1727854238429,-502.20903393,0.00016132,2]
[339679221,1727854238440,-500.0,0.00016132,2]
[339679222,1727854238450,-514.54612499,0.00016132,2]
[339679223,1727854238460,-524.0942846,0.00016132,2]
[339679224,1727854238470,-820.28,0.00016132,2]
[339679225,1727854238479,-522.65,0.00016132,2]
[339679226,1727854238490,-500.0,0.00016132,2]
[339679227,1727854238499,-500.0,0.00016132,2]
[339679228,1727854238509,-103.82780158,0.00016132,2]
[339679229,1727854238521,-515.45219842,0.00016132,2]
[339679230,1727854238531,-500.0,0.00016132,2]
[339679231,1727854238541,-500.0,0.00016132,2]
[339679232,1727854238551,-500.0,0.00016132,2]
[339679233,1727854238561,-500.0,0.00016132,2]
[339679234,1727854238574,-275.71072693,0.00016132,2]
[339679235,1727854238589,-224.28927307,0.00016132,2]
[339679236,1727854238599,-500.0,0.00016132,2]
[339679237,1727854238609,-500.0,0.00016132,2]
[339679238,1727854238618,-500.0,0.00016132,2]
[339679239,1727854238628,-500.0,0.00016132,2]
[339679240,1727854238638,-500.0,0.00016132,2]
[339679241,1727854238648,-500.0,0.00016132,2]
[339679242,1727854238657,-500.0,0.00016132,2]
[339679243,1727854238667,-500.0,0.00016132,2]
[339679244,1727854238677,-503.47246209,0.00016132,2]
[339679245,1727854238687,-527.44539897,0.00016132,2]
[339679246,1727854238697,-4351.22158486,0.00016136,2]
[339679247,1727854238707,-500.0,0.00016164,2]
[339679248,1727854238717,-500.0,0.00016164,2]
[339679249,1727854238726,-503.42971709,0.00016164,2]
[339679250,1727854238735,-500.0,0.00016215,2]
[339679251,1727854238745,-500.0,0.00016215,2]
[339679252,1727854238755,-1025.84,0.00016215,2]
[339679253,1727854238765,-558.26,0.00016215,2]
[339679254,1727854238774,-906.99,0.00016215,2]
[339679255,1727854238784,-1115.22,0.00016215,2]
[339679256,1727854238794,-895.61,0.00016215,2]
[339679257,1727854238804,-500.0,0.00016217,2]
[339679258,1727854239003,-500.0,0.00016217,2]
[339679259,1727854239014,-500.0,0.00016217,2]
[339679260,1727854239024,-176.60570179,0.00016218,2]
[339679261,1727854239034,-500.0,0.0001626,2]
[339679262,1727854239044,-500.7616167,0.0001626,2]
[339679263,1727854239054,-435.70530363,0.0001626,2]
[339679264,1727854239064,-500.0,0.0001626,2]
[339679265,1727854239077,-500.0,0.0001626,2]
[339679266,1727854239088,-500.0,0.0001626,2]
[339679267,1727854239099,-500.0,0.0001626,2]
[339679268,1727854239109,-500.0,0.0001626,2]
[339679269,1727854239124,-500.80805073,0.0001626,2]
[339679270,1727854239135,-539.87720892,0.0001626,2]
[339679271,1727854239147,-544.47,0.0001626,2]
[339679272,1727854239158,-500.0,0.0001626,2]
[339679273,1727854239169,-504.3243304,0.0001626,2]
[339679274,1727854239180,-500.0,0.0001626,2]
[339679275,1727854239191,-500.0,0.0001626,2]
[339679276,1727854239201,-500.0,0.0001626,2]
[339679277,1727854239210,-500.0,0.0001626,2]
[339679278,1727854239219,-875.12,0.0001626,2]
[339679279,1727854239230,-502.15543451,0.0001626,2]
[339679280,1727854239240,-500.0,0.0001626,2]
[339679281,1727854239250,-500.0,0.0001626,2]
[339679282,1727854239260,-500.0,0.0001626,2]
[339679283,1727854239269,-500.0,0.0001626,2]
[339679284,1727854239279,-727.03,0.0001626,2]
[339679285,1727854239289,-500.0,0.0001626,2]
[339679286,1727854239298,-500.0,0.0001626,2]
[339679287,1727854239308,-500.0,0.0001626,2]
[339679288,1727854239319,-500.0,0.0001626,2]
[339679289,1727854239329,-500.0,0.0001626,2]
[339679290,1727854239339,-500.0,0.0001626,2]
[339679291,1727854239349,-500.0,0.0001626,2]
[339679292,1727854239358,-500.0,0.0001626,2]
[339679293,1727854239368,-500.0,0.0001626,2]
[339679294,1727854239378,-564.86475654,0.0001626,2]
[339679295,1727854239388,-500.0,0.0001626,2]
[339679296,1727854239397,-500.0,0.0001626,2]
[339679297,1727854239406,-500.0,0.0001626,2]
[339679298,1727854239416,-500.0,0.0001626,2]
[339679299,1727854239426,-500.0,0.0001626,2]
[339679300,1727854239435,-1440.12382903,0.00016261,2]
[339679301,1727854239445,-500.0,0.00016273,2]
[339679302,1727854239455,-500.0,0.00016273,2]
[339679303,1727854239465,-500.0,0.00016273,2]
[339679304,1727854239476,-1180.5122957,0.0001628,2]
[339679305,1727854239486,-500.0,0.00016317,2]
[339679306,1727854239497,-500.0,0.00016317,2]
[339679307,1727854239507,-500.0,0.00016317,2]
[339679308,1727854239519,-500.0,0.00016317,2]
[339679309,1727854239530,-500.0,0.00016317,2]
[339679310,1727854239540,-500.0,0.00016317,2]
[339679311,1727854239550,-500.0,0.00016317,2]
[339679312,1727854239560,-500.0,0.00016317,2]
[339679313,1727854239571,-500.0,0.00016317,2]
[339679314,1727854239582,-500.0,0.00016317,2]
[339679315,1727854239593,-500.0,0.00016317,2]
[339679316,1727854239603,-500.0,0.00016317,2]
[339679317,1727854239613,-500.0,0.00016317,2]
[339679318,1727854239624,-500.0,0.00016317,2]
[339679319,1727854239633,-500.0,0.00016317,2]
[339679320,1727854239643,-500.0,0.00016317,2]
[339679321,1727854239652,-500.0,0.00016317,2]
[339679322,1727854239664,-500.0,0.00016317,2]
[339679323,1727854239674,-500.0,0.00016317,2]
[339679324,1727854239686,-500.0,0.00016317,2]
[339679325,1727854239696,-500.0,0.00016317,2]
[339679326,1727854239707,-500.0,0.00016317,2]
[339679327,1727854239717,-500.0,0.00016317,2]
[339679328,1727854239729,-500.0,0.00016317,2]
[339679329,1727854239738,-500.0,0.00016317,2]
[339679330,1727854239749,-500.0,0.00016317,2]
[339679331,1727854239761,-500.0,0.00016317,2]
[339679332,1727854239771,-500.0,0.00016317,2]
[339679333,1727854239781,-500.0,0.00016317,2]
[339679334,1727854239792,-500.0,0.00016317,2]
[339679335,1727854239802,-500.0,0.00016317,2]
[339679336,1727854239813,-500.0,0.00016317,2]
[339679337,1727854239825,-500.0,0.00016317,2]
[339679339,1727854239834,-500.0,0.00016317,2]
[339679341,1727854239845,-500.0,0.00016317,2]
[339679343,1727854239855,-500.0,0.00016317,2]
[339679345,1727854239865,-500.0,0.00016317,2]
[339679347,1727854239875,-500.0,0.00016317,2]
[339679348,1727854239885,-500.0,0.00016317,2]
[339679349,1727854239894,-500.0,0.00016317,2]
[339679350,1727854239904,-500.0,0.00016317,2]
[339679351,1727854239914,-500.0,0.00016317,2]
[339679352,1727854239926,-500.0,0.00016317,2]
[339679353,1727854239936,-500.0,0.00016317,2]
[339679354,1727854239946,-500.0,0.00016317,2]
[339679355,1727854239960,-500.0,0.00016317,2]
[339679356,1727854239970,-500.0,0.00016317,2]
[339679357,1727854239981,-500.0,0.00016317,2]
[339679358,1727854239992,-500.0,0.00016317,2]
[339679359,1727854240002,-500.0,0.00016317,2]
[339679360,1727854240012,-500.0,0.00016317,2]
[339679361,1727854240022,-500.0,0.00016317,2]
[339679362,1727854240035,-500.0,0.00016317,2]
[339679363,1727854240045,-500.0,0.00016317,2]
[339679364,1727854240056,-500.0,0.00016317,2]